[Event "Titled Tuesday Blitz June 6 Late 2023"]
[White "Sjugirov, Sanan"]
[Black "Sarana, Alexey"]
[WhiteFideId "4189302"]
[BlackFideId "24133795"]
[WhiteElo "2569"]
[BlackElo "2714"]
[Result "0-1"]
[Round "7"]
[TimeControl "180+2"]
[Date "2023.06.07"]
[WhiteClock "0:00:02"]
[BlackClock "0:00:11"]
[Board "5"]

1. e4 {[%clk 0:03:00]}  c5 {[%clk 0:02:59]} 2. Nf3 {[%clk 0:03:01]}  d6 {[%clk 0:03:00]} 3. d4 {[%clk 0:03:01]}  cxd4 {[%clk 0:03:01]} 4. Nxd4 {[%clk 0:03:02]}  Nf6 {[%clk 0:03:01]} 5. Nc3 {[%clk 0:03:02]}  a6 {[%clk 0:03:02]} 6. Be3 {[%clk 0:02:54]}  e5 {[%clk 0:03:02]} 7. Nb3 {[%clk 0:02:55]}  Be6 {[%clk 0:03:00]} 8. f3 {[%clk 0:02:54]}  Nbd7 {[%clk 0:03:00]} 9. Qd2 {[%clk 0:02:54]}  Be7 {[%clk 0:03:01]} 10. O-O-O {[%clk 0:02:52]}  b5 {[%clk 0:03:00]} 11. g4 {[%clk 0:02:51]}  Nb6 {[%clk 0:03:00]} 12. Qf2 {[%clk 0:02:29]}  Nfd7 {[%clk 0:02:56]} 13. Nd5 {[%clk 0:02:15]}  Bxd5 {[%clk 0:02:53]} 14. exd5 {[%clk 0:02:16]}  Nc4 {[%clk 0:02:47]} 15. Kb1 {[%clk 0:01:58]}  Nxe3 {[%clk 0:02:46]} 16. Qxe3 {[%clk 0:01:59]}  Bh4 {[%clk 0:02:36]} 17. f4 {[%clk 0:01:53]}  O-O {[%clk 0:02:36]} 18. Bd3 {[%clk 0:01:48]}  Re8 {[%clk 0:02:16]} 19. Rhf1 {[%clk 0:01:44]}  Rb8 {[%clk 0:02:09]} 20. Qh3 {[%clk 0:01:36]}  exf4 {[%clk 0:01:50]} 21. Rxf4 {[%clk 0:01:32]}  h6 {[%clk 0:01:48]} 22. Nd4 {[%clk 0:01:26]}  Ne5 {[%clk 0:01:46]} 23. Nc6 {[%clk 0:00:45]}  Nxc6 {[%clk 0:01:45]} 24. dxc6 {[%clk 0:00:46]}  Bg5 {[%clk 0:01:46]} 25. Rf5 {[%clk 0:00:39]}  Rc8 {[%clk 0:01:46]} 26. Qf3 {[%clk 0:00:36]}  Re3 {[%clk 0:01:46]} 27. Qd5 {[%clk 0:00:35]}  Qe7 {[%clk 0:01:41]} 28. a4 {[%clk 0:00:28]}  g6 {[%clk 0:01:18]} 29. Rff1 {[%clk 0:00:24]}  Re5 {[%clk 0:01:15]} 30. Qf3 {[%clk 0:00:22]}  Re3 {[%clk 0:01:05]} 31. Qd5 {[%clk 0:00:22]}  Re5 {[%clk 0:01:05]} 32. Qf3 {[%clk 0:00:22]}  Kg7 {[%clk 0:00:57]} 33. c3 {[%clk 0:00:11]}  Re3 {[%clk 0:00:51]} 34. Qd5 {[%clk 0:00:11]}  Re5 {[%clk 0:00:52]} 35. Qf3 {[%clk 0:00:11]}  Qe8 {[%clk 0:00:43]} 36. axb5 {[%clk 0:00:09]}  axb5 {[%clk 0:00:44]} 37. Bc2 {[%clk 0:00:09]}  Rxc6 {[%clk 0:00:40]} 38. Bb3 {[%clk 0:00:09]}  Rc7 {[%clk 0:00:40]} 39. Rxd6 {[%clk 0:00:08]}  b4 {[%clk 0:00:36]} 40. cxb4 {[%clk 0:00:05]}  Re3 {[%clk 0:00:35]} 41. Qd5 {[%clk 0:00:02]}  Re4 {[%clk 0:00:20]} 42. Qd3 {[%clk 0:00:02]}  Qe5 {[%clk 0:00:17]} 43. Rd5 {[%clk 0:00:01]}  Qe7 {[%clk 0:00:17]} 44. Rd4 {[%clk 0:00:01]}  Re5 {[%clk 0:00:16]} 45. Rc4 {[%clk 0:00:01]}  Rd7 {[%clk 0:00:15]} 46. Qc3 {[%clk 0:00:02]}  Bf6 {[%clk 0:00:16]} 47. Rcf4 {[%clk 0:00:02]}  Rd6 {[%clk 0:00:16]} 48. g5 {[%clk 0:00:01]}  hxg5 {[%clk 0:00:16]} 49. R4f3 {[%clk 0:00:02]}  Rf5 {[%clk 0:00:15]} 50. Qc2 {[%clk 0:00:01]}  Rxf3 {[%clk 0:00:14]} 51. Rxf3 {[%clk 0:00:02]}  Qe5 {[%clk 0:00:14]} 52. Rf1 {[%clk 0:00:02]}  Rd7 {[%clk 0:00:13]} 53. Bc4 {[%clk 0:00:02]}  Rc7 {[%clk 0:00:13]} 54. Rf2 {[%clk 0:00:01]}  Rxc4 {[%clk 0:00:11]} 55. Qxc4 {[%clk 0:00:02]}  Qe1+ {[%clk 0:00:11]} 0-1


[Site "https://www.chess.com"]

[Event "Titled Tuesday Blitz June 6 Late 2023"]
[White "Kamsky, Gata"]
[Black "Paravyan, David"]
[WhiteFideId "2000024"]
[BlackFideId "4194985"]
[WhiteElo "2660"]
[BlackElo "2563"]
[Result "1/2-1/2"]
[Round "7"]
[TimeControl "180+2"]
[Date "2023.06.07"]
[WhiteClock "0:00:44"]
[BlackClock "0:00:21"]
[Board "6"]

1. d4 {[%clk 0:03:00]}  d5 {[%clk 0:02:59]} 2. Bf4 {[%clk 0:03:00]}  Nf6 {[%clk 0:02:58]} 3. e3 {[%clk 0:03:00]}  e6 {[%clk 0:02:58]} 4. Nd2 {[%clk 0:03:01]}  Bd6 {[%clk 0:02:58]} 5. c3 {[%clk 0:03:01]}  O-O {[%clk 0:02:55]} 6. Ngf3 {[%clk 0:03:00]}  b6 {[%clk 0:02:55]} 7. Ne5 {[%clk 0:02:59]}  Bb7 {[%clk 0:02:55]} 8. h4 {[%clk 0:02:51]}  Nbd7 {[%clk 0:02:55]} 9. h5 {[%clk 0:02:51]}  h6 {[%clk 0:02:52]} 10. Qf3 {[%clk 0:02:50]}  Qe7 {[%clk 0:02:03]} 11. Qg3 {[%clk 0:02:48]}  Kh8 {[%clk 0:02:02]} 12. Bd3 {[%clk 0:02:45]}  Bxe5 {[%clk 0:02:00]} 13. Bxe5 {[%clk 0:02:37]}  Nxe5 {[%clk 0:02:00]} 14. Qxe5 {[%clk 0:02:32]}  Qd6 {[%clk 0:01:50]} 15. f3 {[%clk 0:02:16]}  Qxe5 {[%clk 0:01:43]} 16. dxe5 {[%clk 0:02:16]}  Nd7 {[%clk 0:01:43]} 17. f4 {[%clk 0:02:16]}  f6 {[%clk 0:01:39]} 18. Nf3 {[%clk 0:02:12]}  fxe5 {[%clk 0:01:39]} 19. Nxe5 {[%clk 0:01:50]}  Nxe5 {[%clk 0:01:38]} 20. fxe5 {[%clk 0:01:50]}  a5 {[%clk 0:01:37]} 21. Rh3 {[%clk 0:01:34]}  Ba6 {[%clk 0:01:35]} 22. Bxa6 {[%clk 0:01:33]}  Rxa6 {[%clk 0:01:36]} 23. Rf3 {[%clk 0:01:34]}  Kg8 {[%clk 0:01:34]} 24. Ke2 {[%clk 0:01:33]}  a4 {[%clk 0:01:34]} 25. Raf1 {[%clk 0:01:30]}  Rxf3 {[%clk 0:01:17]} 26. gxf3 {[%clk 0:01:30]}  b5 {[%clk 0:01:17]} 27. Kd3 {[%clk 0:01:28]}  c5 {[%clk 0:01:16]} 28. Rg1 {[%clk 0:01:27]}  Kf7 {[%clk 0:01:12]} 29. f4 {[%clk 0:01:26]}  a3 {[%clk 0:00:51]} 30. b3 {[%clk 0:01:19]}  Ra8 {[%clk 0:00:40]} 31. b4 {[%clk 0:00:48]}  cxb4 {[%clk 0:00:39]} 32. cxb4 {[%clk 0:00:48]}  Rc8 {[%clk 0:00:38]} 33. Rb1 {[%clk 0:00:47]}  g6 {[%clk 0:00:31]} 34. hxg6+ {[%clk 0:00:45]}  Kxg6 {[%clk 0:00:32]} 35. Rg1+ {[%clk 0:00:45]}  Kf7 {[%clk 0:00:32]} 36. Rh1 {[%clk 0:00:44]}  Kg6 {[%clk 0:00:29]} 37. Rg1+ {[%clk 0:00:44]}  Kf7 {[%clk 0:00:28]} 38. Rh1 {[%clk 0:00:44]}  Kg6 {[%clk 0:00:21]} 39. Rg1+ {[%clk 0:00:44]} 1/2-1/2


[Site "https://www.chess.com"]

[Event "Titled Tuesday Blitz June 6 Late 2023"]
[White "Lazavik, Denis"]
[Black "Durarbayli, Vasif"]
[WhiteFideId "13515110"]
[BlackFideId "13402935"]
[WhiteElo "2560"]
[BlackElo "2551"]
[Result "0-1"]
[Round "7"]
[TimeControl "180+2"]
[Date "2023.06.07"]
[WhiteClock "0:00:07"]
[BlackClock "0:00:08"]
[Board "7"]

1. d4 {[%clk 0:02:59]}  Nf6 {[%clk 0:03:00]} 2. c4 {[%clk 0:03:00]}  e6 {[%clk 0:03:01]} 3. Nc3 {[%clk 0:03:00]}  Bb4 {[%clk 0:03:01]} 4. e3 {[%clk 0:03:01]}  O-O {[%clk 0:03:01]} 5. Bd3 {[%clk 0:03:01]}  d5 {[%clk 0:03:00]} 6. cxd5 {[%clk 0:02:58]}  exd5 {[%clk 0:02:59]} 7. a3 {[%clk 0:02:59]}  Bd6 {[%clk 0:02:56]} 8. Qc2 {[%clk 0:02:59]}  c6 {[%clk 0:02:55]} 9. Nge2 {[%clk 0:02:59]}  Re8 {[%clk 0:02:55]} 10. Bd2 {[%clk 0:02:57]}  a5 {[%clk 0:02:53]} 11. O-O {[%clk 0:02:55]}  b5 {[%clk 0:02:51]} 12. f3 {[%clk 0:02:51]}  Ba6 {[%clk 0:02:45]} 13. Nd1 {[%clk 0:02:36]}  b4 {[%clk 0:02:30]} 14. Nf2 {[%clk 0:02:33]}  bxa3 {[%clk 0:02:02]} 15. bxa3 {[%clk 0:02:31]}  Qc7 {[%clk 0:02:02]} 16. h3 {[%clk 0:02:26]}  c5 {[%clk 0:01:55]} 17. dxc5 {[%clk 0:02:23]}  Qxc5 {[%clk 0:01:56]} 18. Rfc1 {[%clk 0:02:16]}  Nbd7 {[%clk 0:01:38]} 19. Nd4 {[%clk 0:01:45]}  Qxc2 {[%clk 0:01:30]} 20. Rxc2 {[%clk 0:01:44]}  Ne5 {[%clk 0:01:28]} 21. Bxa6 {[%clk 0:01:36]}  Rxa6 {[%clk 0:01:29]} 22. Nb5 {[%clk 0:01:18]}  Nc4 {[%clk 0:01:12]} 23. Nxd6 {[%clk 0:00:41]}  Rxd6 {[%clk 0:01:13]} 24. e4 {[%clk 0:00:42]}  dxe4 {[%clk 0:01:03]} 25. Bg5 {[%clk 0:00:35]}  e3 {[%clk 0:00:50]} 26. Rxc4 {[%clk 0:00:34]}  exf2+ {[%clk 0:00:50]} 27. Kxf2 {[%clk 0:00:35]}  h6 {[%clk 0:00:48]} 28. Bf4 {[%clk 0:00:35]}  Rd3 {[%clk 0:00:44]} 29. Rc2 {[%clk 0:00:33]}  Nd5 {[%clk 0:00:40]} 30. Bd2 {[%clk 0:00:26]}  a4 {[%clk 0:00:41]} 31. Rb2 {[%clk 0:00:08]}  Kh7 {[%clk 0:00:25]} 32. Raa2 {[%clk 0:00:07]}  g5 {[%clk 0:00:23]} 33. Rc2 {[%clk 0:00:07]}  Kg6 {[%clk 0:00:20]} 34. Rc6+ {[%clk 0:00:07]}  f6 {[%clk 0:00:21]} 35. Rc4 {[%clk 0:00:06]}  Rd8 {[%clk 0:00:15]} 36. Ke2 {[%clk 0:00:05]}  Rb3 {[%clk 0:00:12]} 37. Rxa4 {[%clk 0:00:04]}  Rb1 {[%clk 0:00:09]} 38. Kf2 {[%clk 0:00:04]}  Nb6 {[%clk 0:00:08]} 39. Rb4 {[%clk 0:00:04]}  Rd1 {[%clk 0:00:07]} 40. Rxb6 {[%clk 0:00:04]}  R1xd2+ {[%clk 0:00:06]} 41. Rxd2 {[%clk 0:00:04]}  Rxd2+ {[%clk 0:00:07]} 42. Kg3 {[%clk 0:00:05]}  Ra2 {[%clk 0:00:07]} 43. Ra6 {[%clk 0:00:06]}  h5 {[%clk 0:00:08]} 44. h4 {[%clk 0:00:06]}  gxh4+ {[%clk 0:00:08]} 45. Kh3 {[%clk 0:00:06]}  Kg5 {[%clk 0:00:08]} 46. Ra5+ {[%clk 0:00:07]}  f5 {[%clk 0:00:08]} 47. a4 {[%clk 0:00:07]}  Ra3 {[%clk 0:00:08]} 48. Ra8 {[%clk 0:00:07]}  Ra1 {[%clk 0:00:09]} 49. a5 {[%clk 0:00:07]}  Rh1# {[%clk 0:00:08]} 0-1


[Site "https://www.chess.com"]

[Event "Titled Tuesday Blitz June 6 Late 2023"]
[White "Moroni, Luca Jr"]
[Black "Bortnyk, Mykola"]
[WhiteFideId "865834"]
[BlackFideId "14120836"]
[WhiteElo "2569"]
[BlackElo "2592"]
[Result "1-0"]
[Round "7"]
[TimeControl "180+2"]
[Date "2023.06.07"]
[WhiteClock "0:00:48"]
[BlackClock "0:00:22"]
[Board "10"]

1. d4 {[%clk 0:03:00]}  Nf6 {[%clk 0:02:58]} 2. Bf4 {[%clk 0:03:00]}  c5 {[%clk 0:02:58]} 3. e3 {[%clk 0:03:00]}  cxd4 {[%clk 0:02:58]} 4. exd4 {[%clk 0:03:01]}  d5 {[%clk 0:02:58]} 5. c3 {[%clk 0:02:58]}  Nc6 {[%clk 0:02:58]} 6. Nf3 {[%clk 0:02:57]}  Bf5 {[%clk 0:02:58]} 7. Nbd2 {[%clk 0:02:57]}  e6 {[%clk 0:02:58]} 8. Be2 {[%clk 0:02:52]}  Bd6 {[%clk 0:02:57]} 9. Bxd6 {[%clk 0:02:52]}  Qxd6 {[%clk 0:02:58]} 10. O-O {[%clk 0:02:52]}  O-O {[%clk 0:02:57]} 11. Re1 {[%clk 0:02:53]}  Ne4 {[%clk 0:02:52]} 12. Nh4 {[%clk 0:02:50]}  Qf4 {[%clk 0:02:36]} 13. Nxe4 {[%clk 0:02:29]}  Bxe4 {[%clk 0:02:37]} 14. g3 {[%clk 0:02:28]}  Qd6 {[%clk 0:02:32]} 15. Bd3 {[%clk 0:02:27]}  Bg6 {[%clk 0:02:28]} 16. Nxg6 {[%clk 0:02:24]}  hxg6 {[%clk 0:02:29]} 17. h4 {[%clk 0:02:21]}  e5 {[%clk 0:02:20]} 18. dxe5 {[%clk 0:02:20]}  Nxe5 {[%clk 0:02:21]} 19. Bf1 {[%clk 0:02:21]}  Rad8 {[%clk 0:02:14]} 20. Bg2 {[%clk 0:02:21]}  Nc6 {[%clk 0:02:11]} 21. Qb3 {[%clk 0:02:14]}  Na5 {[%clk 0:02:07]} 22. Qa4 {[%clk 0:02:07]}  Nc4 {[%clk 0:02:01]} 23. b3 {[%clk 0:02:07]}  Nb6 {[%clk 0:01:51]} 24. Qd4 {[%clk 0:02:06]}  Rd7 {[%clk 0:01:47]} 25. a4 {[%clk 0:02:04]}  a5 {[%clk 0:01:44]} 26. Rad1 {[%clk 0:02:02]}  Rfd8 {[%clk 0:01:44]} 27. Re3 {[%clk 0:01:43]}  Qf6 {[%clk 0:01:43]} 28. Bh3 {[%clk 0:01:35]}  Rc7 {[%clk 0:01:38]} 29. c4 {[%clk 0:01:27]}  Qxd4 {[%clk 0:01:27]} 30. Rxd4 {[%clk 0:01:26]}  Kh7 {[%clk 0:01:19]} 31. Re1 {[%clk 0:01:14]}  Rc5 {[%clk 0:01:12]} 32. Red1 {[%clk 0:01:13]}  Rd6 {[%clk 0:01:07]} 33. Bg2 {[%clk 0:01:12]}  f6 {[%clk 0:01:05]} 34. Bxd5 {[%clk 0:01:10]}  Nxd5 {[%clk 0:00:57]} 35. Rxd5 {[%clk 0:01:11]}  Rcxd5 {[%clk 0:00:54]} 36. Rxd5 {[%clk 0:01:09]}  Ra6 {[%clk 0:00:50]} 37. Kf1 {[%clk 0:01:05]}  Kh6 {[%clk 0:00:44]} 38. Rb5 {[%clk 0:01:05]}  b6 {[%clk 0:00:43]} 39. Ke2 {[%clk 0:01:05]}  g5 {[%clk 0:00:39]} 40. hxg5+ {[%clk 0:01:04]}  fxg5 {[%clk 0:00:40]} 41. g4 {[%clk 0:01:01]}  g6 {[%clk 0:00:40]} 42. Ke3 {[%clk 0:00:59]}  Ra7 {[%clk 0:00:32]} 43. Rxb6 {[%clk 0:00:59]}  Re7+ {[%clk 0:00:32]} 44. Kd3 {[%clk 0:00:58]}  Rd7+ {[%clk 0:00:29]} 45. Kc3 {[%clk 0:00:58]}  Rc7 {[%clk 0:00:29]} 46. Rb5 {[%clk 0:00:57]}  Rf7 {[%clk 0:00:27]} 47. c5 {[%clk 0:00:57]}  Rxf2 {[%clk 0:00:25]} 48. c6 {[%clk 0:00:57]}  Rf3+ {[%clk 0:00:26]} 49. Kc4 {[%clk 0:00:55]}  Rf7 {[%clk 0:00:26]} 50. Rxa5 {[%clk 0:00:52]}  Rc7 {[%clk 0:00:25]} 51. Rc5 {[%clk 0:00:52]}  Ra7 {[%clk 0:00:24]} 52. Kb5 {[%clk 0:00:51]}  Rc7 {[%clk 0:00:24]} 53. Kb6 {[%clk 0:00:52]}  Re7 {[%clk 0:00:22]} 54. c7 {[%clk 0:00:51]}  Re6+ {[%clk 0:00:22]} 55. Rc6 {[%clk 0:00:50]}  Re7 {[%clk 0:00:21]} 56. c8=Q {[%clk 0:00:48]}  Rb7+ {[%clk 0:00:22]} 57. Kxb7 {[%clk 0:00:48]} 1-0


[Site "https://www.chess.com"]

[Event "Titled Tuesday Blitz June 6 Late 2023"]
[White "Jovic, Stanoje"]
[Black "Narayanan.S.L"]
[WhiteFideId "905020"]
[BlackFideId "5058422"]
[WhiteElo "2236"]
[BlackElo "2563"]
[Result "0-1"]
[Round "7"]
[TimeControl "180+2"]
[Date "2023.06.07"]
[WhiteClock "0:00:18"]
[BlackClock "0:00:43"]
[Board "11"]

1. c4 {[%clk 0:03:00]}  e5 {[%clk 0:02:54]} 2. g3 {[%clk 0:03:00]}  Nc6 {[%clk 0:02:53]} 3. Bg2 {[%clk 0:03:00]}  f5 {[%clk 0:02:53]} 4. Nh3 {[%clk 0:02:57]}  Nh6 {[%clk 0:02:52]} 5. O-O {[%clk 0:02:56]}  Nf7 {[%clk 0:02:51]} 6. d3 {[%clk 0:02:52]}  g5 {[%clk 0:02:51]} 7. f4 {[%clk 0:02:50]}  exf4 {[%clk 0:02:49]} 8. gxf4 {[%clk 0:02:50]}  g4 {[%clk 0:02:49]} 9. Nf2 {[%clk 0:02:49]}  h5 {[%clk 0:02:50]} 10. e4 {[%clk 0:02:48]}  Bc5 {[%clk 0:02:50]} 11. Nc3 {[%clk 0:02:38]}  d6 {[%clk 0:02:49]} 12. Nd5 {[%clk 0:02:32]}  h4 {[%clk 0:02:47]} 13. Be3 {[%clk 0:02:28]}  h3 {[%clk 0:02:28]} 14. Bh1 {[%clk 0:02:27]}  Bxe3 {[%clk 0:02:24]} 15. Nxe3 {[%clk 0:02:26]}  Qh4 {[%clk 0:02:24]} 16. exf5 {[%clk 0:02:13]}  g3 {[%clk 0:02:23]} 17. Bxc6+ {[%clk 0:02:11]}  bxc6 {[%clk 0:02:21]} 18. Ne4 {[%clk 0:02:10]}  gxh2+ {[%clk 0:02:06]} 19. Kxh2 {[%clk 0:02:03]}  Nh6 {[%clk 0:02:06]} 20. Qe1 {[%clk 0:01:56]}  Qxe1 {[%clk 0:01:29]} 21. Raxe1 {[%clk 0:01:55]}  Kf8 {[%clk 0:01:28]} 22. Ng3 {[%clk 0:01:46]}  d5 {[%clk 0:01:25]} 23. d4 {[%clk 0:01:41]}  c5 {[%clk 0:01:23]} 24. dxc5 {[%clk 0:01:36]}  d4 {[%clk 0:01:23]} 25. Nd5 {[%clk 0:01:35]}  Ng4+ {[%clk 0:01:21]} 26. Kh1 {[%clk 0:01:31]}  Bb7 {[%clk 0:01:21]} 27. Ne4 {[%clk 0:01:20]}  Re8 {[%clk 0:01:16]} 28. b4 {[%clk 0:01:11]}  Ne3 {[%clk 0:01:08]} 29. Nef6 {[%clk 0:00:53]}  Rd8 {[%clk 0:00:53]} 30. b5 {[%clk 0:00:50]}  Nxf1 {[%clk 0:00:50]} 31. c6 {[%clk 0:00:47]}  Bc8 {[%clk 0:00:50]} 32. Rxf1 {[%clk 0:00:44]}  Bxf5 {[%clk 0:00:48]} 33. Nxc7 {[%clk 0:00:32]}  Kf7 {[%clk 0:00:48]} 34. Ncd5 {[%clk 0:00:30]}  Rd6 {[%clk 0:00:49]} 35. c7 {[%clk 0:00:29]}  Rxf6 {[%clk 0:00:46]} 36. Nxf6 {[%clk 0:00:28]}  Kxf6 {[%clk 0:00:46]} 37. Rd1 {[%clk 0:00:26]}  d3 {[%clk 0:00:44]} 38. Kh2 {[%clk 0:00:25]}  Rg8 {[%clk 0:00:44]} 39. Rd2 {[%clk 0:00:22]}  Rg2+ {[%clk 0:00:42]} 40. Rxg2 {[%clk 0:00:19]}  hxg2 {[%clk 0:00:43]} 41. c5 {[%clk 0:00:19]}  d2 {[%clk 0:00:43]} 42. b6 {[%clk 0:00:18]}  g1=Q+ {[%clk 0:00:43]} 0-1


[Site "https://www.chess.com"]

[Event "Titled Tuesday Blitz June 6 Late 2023"]
[White "Caruana, Fabiano"]
[Black "Daggupati, Balaji"]
[WhiteFideId "2020009"]
[BlackFideId "2090759"]
[WhiteElo "2832"]
[BlackElo "2735"]
[Result "0-1"]
[Round "7"]
[TimeControl "180+2"]
[Date "2023.06.07"]
[WhiteClock "0:01:01"]
[BlackClock "0:02:11"]
[Board "12"]

1. g4 {[%clk 0:03:00]}  d5 {[%clk 0:02:59]} 2. Bg2 {[%clk 0:03:00]}  c6 {[%clk 0:02:56]} 3. h3 {[%clk 0:02:59]}  e5 {[%clk 0:02:54]} 4. d3 {[%clk 0:02:53]}  Be6 {[%clk 0:02:51]} 5. c3 {[%clk 0:02:50]}  Nd7 {[%clk 0:02:51]} 6. Nf3 {[%clk 0:02:47]}  h5 {[%clk 0:02:46]} 7. Ng5 {[%clk 0:02:45]}  hxg4 {[%clk 0:02:42]} 8. Nxe6 {[%clk 0:02:45]}  fxe6 {[%clk 0:02:42]} 9. hxg4 {[%clk 0:02:45]}  Rxh1+ {[%clk 0:02:43]} 10. Bxh1 {[%clk 0:02:45]}  Qh4 {[%clk 0:02:44]} 11. Bf3 {[%clk 0:02:44]}  Ngf6 {[%clk 0:02:39]} 12. e3 {[%clk 0:01:45]}  e4 {[%clk 0:02:36]} 13. Be2 {[%clk 0:01:46]}  exd3 {[%clk 0:02:36]} 14. Qxd3 {[%clk 0:01:41]}  Ne4 {[%clk 0:02:36]} 15. Nd2 {[%clk 0:01:29]}  Nxf2 {[%clk 0:02:36]} 16. Qg6+ {[%clk 0:01:28]}  Kd8 {[%clk 0:02:21]} 17. Qh5 {[%clk 0:01:00]}  Nd3+ {[%clk 0:02:11]} 18. Kd1 {[%clk 0:01:01]}  Qe1+ {[%clk 0:02:11]} 0-1


[Site "https://www.chess.com"]

[Event "Titled Tuesday Blitz June 6 Late 2023"]
[White "Terry, Renato"]
[Black "Kollars, Dmitrij"]
[WhiteFideId "3803457"]
[BlackFideId "12909572"]
[WhiteElo "2575"]
[BlackElo "2584"]
[Result "0-1"]
[Round "7"]
[TimeControl "180+2"]
[Date "2023.06.07"]
[WhiteClock "0:00:01"]
[BlackClock "0:00:38"]
[Board "13"]

1. Nf3 {[%clk 0:03:00]}  d5 {[%clk 0:02:59]} 2. b3 {[%clk 0:02:59]}  Nf6 {[%clk 0:02:57]} 3. Bb2 {[%clk 0:03:00]}  Bf5 {[%clk 0:02:58]} 4. g3 {[%clk 0:02:58]}  e6 {[%clk 0:02:57]} 5. Bg2 {[%clk 0:02:59]}  h6 {[%clk 0:02:56]} 6. O-O {[%clk 0:02:59]}  Be7 {[%clk 0:02:56]} 7. d3 {[%clk 0:02:58]}  O-O {[%clk 0:02:55]} 8. Nbd2 {[%clk 0:02:59]}  Bh7 {[%clk 0:02:56]} 9. Ne5 {[%clk 0:02:58]}  Nfd7 {[%clk 0:02:54]} 10. Nxd7 {[%clk 0:02:55]}  Nxd7 {[%clk 0:02:54]} 11. e4 {[%clk 0:02:52]}  c6 {[%clk 0:02:54]} 12. Qe2 {[%clk 0:02:50]}  a5 {[%clk 0:02:53]} 13. a3 {[%clk 0:02:49]}  Re8 {[%clk 0:02:40]} 14. Kh1 {[%clk 0:02:41]}  Qb6 {[%clk 0:02:38]} 15. Rab1 {[%clk 0:02:39]}  Rad8 {[%clk 0:02:37]} 16. f4 {[%clk 0:02:10]}  Bc5 {[%clk 0:02:35]} 17. e5 {[%clk 0:02:05]}  Bd4 {[%clk 0:02:20]} 18. Bc1 {[%clk 0:01:16]}  f6 {[%clk 0:02:15]} 19. Nf3 {[%clk 0:01:15]}  fxe5 {[%clk 0:02:09]} 20. fxe5 {[%clk 0:01:15]}  Bc5 {[%clk 0:02:08]} 21. b4 {[%clk 0:01:14]}  axb4 {[%clk 0:02:07]} 22. axb4 {[%clk 0:01:15]}  Be7 {[%clk 0:01:59]} 23. Bh3 {[%clk 0:01:04]}  Nf8 {[%clk 0:01:59]} 24. Be3 {[%clk 0:00:59]}  Qc7 {[%clk 0:01:55]} 25. Qf2 {[%clk 0:00:52]}  Ra8 {[%clk 0:01:47]} 26. Bb6 {[%clk 0:00:52]}  Qd7 {[%clk 0:01:47]} 27. Nd4 {[%clk 0:00:51]}  Bg6 {[%clk 0:01:29]} 28. Qe2 {[%clk 0:00:48]}  Kh7 {[%clk 0:01:20]} 29. Qg4 {[%clk 0:00:45]}  Ra4 {[%clk 0:01:04]} 30. Bc5 {[%clk 0:00:18]}  Bxc5 {[%clk 0:00:56]} 31. bxc5 {[%clk 0:00:19]}  Bf5 {[%clk 0:00:56]} 32. Rxf5 {[%clk 0:00:13]}  exf5 {[%clk 0:00:55]} 33. Qxf5+ {[%clk 0:00:08]}  Qxf5 {[%clk 0:00:55]} 34. Bxf5+ {[%clk 0:00:09]}  g6 {[%clk 0:00:51]} 35. Rxb7+ {[%clk 0:00:09]}  Kh8 {[%clk 0:00:51]} 36. Nxc6 {[%clk 0:00:02]}  gxf5 {[%clk 0:00:51]} 37. Rf7 {[%clk 0:00:02]}  Ne6 {[%clk 0:00:42]} 38. Rf6 {[%clk 0:00:01]}  Kg7 {[%clk 0:00:40]} 39. Rxf5 {[%clk 0:00:01]}  Rf8 {[%clk 0:00:39]} 40. g4 {[%clk 0:00:01]}  Rxg4 {[%clk 0:00:37]} 41. Rxf8 {[%clk 0:00:01]}  Kxf8 {[%clk 0:00:38]} 0-1


[Site "https://www.chess.com"]